bitfinex/quotes_SOLUSD_20230120
["timestamp","ask_amount","ask_price","bid_price","bid_amount"]
[1674196077444,0.96,21.071,21.07,0.08807364]
[1674196077630,1.92,21.071,21.07,0.08807364]
[1674196080286,18.92,21.071,21.07,0.08807364]
[1674196081118,18.92,21.071,21.07,0.02489525]
[1674196081119,17.0,21.071,21.07,0.02489525]
[1674196081665,23.75576951,21.074,21.07,0.02489525]
[1674196083120,17.0,21.073,21.07,0.02489525]
[1674196083567,1.92,21.072,21.07,0.02489525]
[1674196084604,11.92,21.072,21.07,0.02489525]
[1674196084818,17.0,21.071,21.07,0.02489525]
[1674196085035,18.92,21.071,21.07,0.02489525]
[1674196085234,17.96,21.071,21.07,0.02489525]
[1674196086478,18.92,21.071,21.07,0.02489525]
[1674196086688,17.96,21.071,21.07,0.02489525]
[1674196089112,17.0,21.071,21.07,0.02489525]
[1674196090609,17.96,21.071,21.07,0.02489525]
[1674196093646,18.92,21.071,21.07,0.02489525]
[1674196098584,68.76112636,21.079,21.07,0.02489525]
[1674196098776,35.58,21.083,21.07,0.02489525]
[1674196098992,23.75576951,21.081,21.07,0.02489525]
[1674196100041,18.92,21.08,21.07,0.02489525]
[1674196102888,10.0,21.079,21.07,0.02489525]
[1674196103106,54.51,21.078,21.07,0.02489525]
[1674196103312,20.0,21.077,21.07,0.02489525]
[1674196103525,18.92,21.076,21.07,0.02489525]
[1674196105533,17.96,21.076,21.07,0.02489525]
[1674196106783,35.58,21.082,21.07,0.02489525]
[1674196107106,35.57,21.086,21.07,0.02489525]
[1674196107504,23.75576951,21.085,21.07,0.02489525]
[1674196107716,35.58,21.084,21.07,0.02489525]
[1674196108034,17.96,21.083,21.07,0.02489525]
[1674196108261,35.58,21.084,21.07,0.02489525]
[1674196108450,35.57,21.086,21.07,0.02489525]
[1674196108665,10.0,21.085,21.07,0.02489525]
[1674196108875,35.58,21.084,21.07,0.02489525]
[1674196109299,10.0,21.082,21.07,0.02489525]
[1674196109509,18.92,21.081,21.07,0.02489525]
[1674196110652,1.92,21.081,21.07,0.02489525]
[1674196115528,35.58,21.08,21.07,0.02489525]
[1674196115693,18.92,21.079,21.07,0.02489525]
[1674196115905,17.96,21.079,21.07,0.02489525]
[1674196116134,0.96,21.079,21.07,0.02489525]
[1674196116320,0.96,21.08,21.07,0.02489525]
[1674196116534,17.96,21.08,21.07,0.02489525]
[1674196116770,0.96,21.08,21.07,0.02489525]
[1674196117798,0.96,21.08,21.068,10.0]
[1674196118669,36.54,21.08,21.068,10.0]
[1674196118852,17.0,21.079,21.068,10.0]
[1674196119062,1.92,21.078,21.068,10.0]
[1674196120547,0.96,21.078,21.068,10.0]
[1674196120735,1.92,21.079,21.067,149.5975]
[1674196120950,1.92,21.079,21.067,119.5975]
[1674196121165,35.59,21.078,21.068,20.0]
[1674196121484,18.92,21.077,21.068,20.0]
[1674196122117,18.92,21.077,21.068,30.0]
[1674196122530,0.96,21.077,21.068,30.0]
[1674196122743,23.75576951,21.082,21.068,30.0]
[1674196122955,23.75576951,21.082,21.069,10.0]
[1674196124117,17.96,21.081,21.069,10.0]
[1674196124326,18.92,21.081,21.069,10.0]
[1674196124536,23.75576951,21.08,21.069,10.0]
[1674196124856,35.57,21.085,21.069,10.0]
[1674196125287,10.0,21.084,21.069,10.0]
[1674196125471,35.58,21.083,21.069,10.0]
[1674196125680,35.57,21.085,21.069,10.0]
[1674196125895,35.57,21.085,21.069,9.89552444]
[1674196126108,17.96,21.084,21.069,9.89552444]
[1674196126541,0.96,21.083,21.069,9.89552444]
[1674196126858,0.96,21.082,21.069,9.89552444]
[1674196127174,0.96,21.081,21.069,9.89552444]
[1674196129997,0.96,21.081,21.068,65.6]
[1674196130209,0.96,21.081,21.068,30.0]
[1674196130532,0.96,21.081,21.068,20.0]
[1674196130533,35.58,21.08,21.068,20.0]
[1674196130740,28.92,21.079,21.065,115.8884]
[1674196130958,10.0,21.077,21.06,45.62]
[1674196131147,54.51,21.076,21.06,10.0]
[1674196131483,10.0,21.075,21.06,10.0]
[1674196131693,54.51,21.074,21.059,128.2485]
[1674196131903,10.0,21.073,21.059,128.2485]
[1674196132099,18.92,21.072,21.059,128.2485]
[1674196133046,17.0,21.071,21.059,128.2485]
[1674196133257,1.92,21.07,21.059,128.2485]
[1674196133580,0.96,21.069,21.059,128.2485]
[1674196133787,0.96,21.068,21.059,128.2485]
[1674196133986,0.96,21.07,21.059,128.2485]
[1674196134200,0.96,21.071,21.059,118.2485]
[1674196134521,0.96,21.07,21.059,118.2485]
[1674196135557,0.96,21.07,21.06,10.0]
[1674196141266,35.59,21.076,21.06,25.39]
[1674196141455,35.58,21.081,21.061,35.61]
[1674196141667,20.0,21.08,21.062,10.0]
[1674196141888,20.0,21.08,21.064,10.0]
[1674196142099,20.0,21.08,21.065,35.61]
[1674196142635,35.58,21.084,21.066,30.0]
[1674196142823,33.18112636,21.085,21.07,15.33]
[1674196143154,35.57,21.086,21.072,10.0]
[1674196143344,44.47453794,21.087,21.072,10.0]
[1674196143774,10.0,21.088,21.072,10.0]
[1674196144102,10.0,21.086,21.072,10.0]
[1674196144625,18.92,21.085,21.072,10.0]
[1674196145132,17.96,21.085,21.072,10.0]
[1674196145469,17.96,21.085,21.07,50.93]
[1674196145659,17.96,21.085,21.071,10.0]
[1674196146733,0.96,21.084,21.071,10.0]
[1674196146945,0.96,21.083,21.071,10.0]
[1674196147146,0.96,21.082,21.071,10.0]
[1674196147673,0.96,21.081,21.071,10.0]
[1674196147991,0.96,21.08,21.07,50.93]
[1674196148420,0.96,21.079,21.068,122.8934]
[1674196148603,0.96,21.078,21.068,122.8934]
[1674196149126,0.96,21.077,21.068,122.8934]
[1674196149335,0.96,21.076,21.068,122.8934]
[1674196150177,0.96,21.076,21.068,112.8934]
[1674196150387,0.96,21.076,21.069,10.0]
[1674196153871,0.96,21.076,21.068,112.8934]
[1674196154084,0.96,21.075,21.068,112.8934]
[1674196154287,0.96,21.074,21.068,112.8934]
[1674196154812,0.96,21.074,21.065,118.6554]
[1674196155029,0.96,21.074,21.061,35.61]
[1674196155030,0.96,21.073,21.061,35.61]
[1674196155228,0.96,21.072,21.06,108.7446]
[1674196155444,0.96,21.071,21.06,108.7446]
[1674196155659,0.96,21.07,21.06,108.7446]
[1674196155848,0.96,21.069,21.06,108.7446]
[1674196156056,0.96,21.07,21.06,108.7446]
[1674196156393,0.96,21.071,21.061,10.0]
[1674196156611,1.92,21.071,21.062,35.61]
[1674196156802,1.92,21.071,21.063,10.0]
[1674196157009,1.92,21.071,21.064,35.61]
[1674196157219,1.92,21.071,21.063,10.0]
[1674196157648,1.92,21.071,21.062,35.61]
[1674196157855,0.96,21.07,21.061,45.61]
[1674196158378,0.96,21.07,21.061,35.61]
[1674196158587,0.96,21.07,21.06,108.7446]
[1674196158789,0.96,21.07,21.057,35.62]
[1674196159003,0.96,21.07,21.058,20.0]
[1674196159442,17.96,21.07,21.058,20.0]
[1674196159632,17.96,21.069,21.057,20.0]
[1674196159851,0.96,21.068,21.057,20.0]
[1674196160059,0.96,21.067,21.057,20.0]
[1674196160270,0.96,21.066,21.057,20.0]
[1674196160494,0.96,21.065,21.057,20.0]
[1674196160701,0.96,21.064,21.058,10.0]
[1674196160895,0.96,21.069,21.058,10.0]
[1674196161109,0.96,21.069,21.058,45.62]
[1674196163859,0.96,21.069,21.058,35.62]
[1674196164053,0.96,21.069,21.057,20.0]
[1674196164496,10.96,21.069,21.057,20.0]
[1674196164700,17.96,21.068,21.057,20.0]
[1674196165020,0.96,21.067,21.057,20.0]
[1674196165226,0.96,21.066,21.057,20.0]
[1674196165439,0.96,21.065,21.057,20.0]
[1674196165642,0.96,21.064,21.057,20.0]
[1674196165857,0.96,21.063,21.057,20.0]
[1674196166181,0.96,21.062,21.057,20.0]
[1674196166698,45.59,21.078,21.059,10.0]
[1674196166915,10.0,21.078,21.06,35.62]
[1674196167098,55.59,21.077,21.061,10.0]
[1674196167728,55.59,21.077,21.063,10.0]
[1674196167939,18.92,21.076,21.063,10.0]
[1674196173241,18.92,21.076,21.061,10.0]
[1674196173547,10.0,21.075,21.061,10.0]
[1674196173755,18.92,21.074,21.061,10.0]
[1674196174367,1.92,21.074,21.061,10.0]
[1674196178087,20.0,21.077,21.059,45.62]
[1674196178381,10.0,21.077,21.059,45.62]
[1674196178572,45.59,21.077,21.059,45.62]
[1674196179306,18.92,21.076,21.059,45.62]
[1674196183098,35.59,21.077,21.059,45.62]
[1674196183311,20.0,21.078,21.059,45.62]
[1674196183631,20.0,21.079,21.059,45.62]
[1674196183841,20.0,21.079,21.061,10.0]
[1674196184044,20.0,21.079,21.062,35.61]
[1674196184278,20.0,21.079,21.063,10.0]
[1674196184595,20.0,21.081,21.065,10.0]
[1674196184991,18.92,21.08,21.065,10.0]
[1674196185209,20.0,21.079,21.065,10.0]
[1674196185415,18.92,21.078,21.065,10.0]
[1674196185635,20.0,21.077,21.065,10.0]
[1674196186170,20.0,21.08,21.065,10.0]
[1674196186919,0.96,21.079,21.065,10.0]
[1674196187412,20.0,21.081,21.065,10.0]
[1674196187625,35.58,21.08,21.067,10.0]
[1674196187833,20.0,21.079,21.067,10.0]
[1674196188562,17.96,21.078,21.067,10.0]
[1674196188773,20.96,21.077,21.067,10.0]
[1674196188985,17.0,21.076,21.067,10.0]
[1674196189634,0.96,21.075,21.067,10.0]
[1674196196046,0.96,21.074,21.065,10.0]
[1674196196263,0.96,21.073,21.065,10.0]
[1674196197191,0.96,21.073,21.064,35.61]
[1674196197408,0.96,21.072,21.061,45.61]
[1674196197617,0.96,21.071,21.061,10.0]
[1674196198036,0.96,21.07,21.061,10.0]
[1674196198243,0.96,21.069,21.061,10.0]
[1674196198575,0.96,21.068,21.061,10.0]
[1674196200042,0.96,21.068,21.06,10.0]
[1674196202539,35.59,21.074,21.06,10.0]
[1674196202750,18.92,21.073,21.061,35.61]
[1674196202976,18.92,21.073,21.062,10.0]
[1674196203305,1.92,21.073,21.062,10.0]
[1674196203711,1.92,21.073,21.06,45.62]
[1674196203919,1.92,21.073,21.06,10.0]
[1674196204129,18.92,21.073,21.06,10.0]
[1674196205068,17.0,21.072,21.058,45.62]
[1674196205290,11.92,21.071,21.058,10.0]
[1674196205480,17.0,21.07,21.058,10.0]
[1674196205697,1.92,21.069,21.058,10.0]
[1674196208550,1.92,21.069,21.057,10.0]
[1674196208762,35.6,21.068,21.051,35.63]
[1674196209079,38.92,21.067,21.054,108.4116]
[1674196209291,35.61,21.066,21.054,108.4116]
[1674196209492,28.92,21.065,21.054,108.4116]
[1674196209699,35.61,21.064,21.054,108.4116]
[1674196209921,18.92,21.063,21.054,108.4116]
[1674196215167,17.0,21.062,21.054,108.4116]
[1674196215377,1.92,21.061,21.054,108.4116]
[1674196215597,0.96,21.06,21.054,108.4116]
[1674196216116,0.96,21.063,21.054,108.4116]
[1674196216329,0.96,21.064,21.054,108.4116]
[1674196216748,0.96,21.065,21.054,108.4116]
[1674196217369,0.96,21.064,21.054,108.4116]
[1674196218742,17.96,21.064,21.054,108.4116]
[1674196218953,0.96,21.063,21.054,108.4116]
[1674196220084,0.96,21.062,21.054,108.4116]
[1674196220300,0.96,21.061,21.05,10.0]
[1674196220632,0.96,21.061,21.049,10.0]
[1674196220843,0.96,21.061,21.05,35.63]
[1674196221051,0.96,21.061,21.051,10.0]
[1674196223161,0.96,21.061,21.05,35.63]
[1674196223374,0.96,21.061,21.049,45.63]
[1674196223571,0.96,21.061,21.049,10.0]
[1674196224520,0.96,21.061,21.051,10.0]
[1674196224735,35.6,21.069,21.052,35.63]
[1674196224931,33.18112636,21.075,21.052,47.95902593]
[1674196225142,20.0,21.074,21.053,10.0]
[1674196225451,33.18112636,21.075,21.054,35.63]
[1674196225673,35.59,21.078,21.06,15.32]
[1674196225882,35.59,21.078,21.062,10.0]
[1674196226106,20.0,21.077,21.063,35.61]
[1674196226418,20.0,21.077,21.064,10.0]
[1674196226633,20.0,21.079,21.064,10.0]
[1674196227052,18.92,21.078,21.064,10.0]
[1674196227261,20.0,21.077,21.063,35.61]
[1674196227479,18.92,21.076,21.063,35.61]
[1674196228830,42.67576951,21.076,21.061,163.7982]
[1674196229036,42.67576951,21.076,21.062,10.0]
[1674196230111,78.26576951,21.076,21.061,128.1882]
[1674196230300,10.0,21.075,21.061,128.1882]
[1674196230511,18.92,21.074,21.061,118.1882]
[1674196233129,18.92,21.074,21.062,10.0]
[1674196233551,17.0,21.073,21.062,10.0]
[1674196233772,1.92,21.072,21.062,10.0]
[1674196233980,0.96,21.072,21.062,10.0]
[1674196234187,0.96,21.071,21.062,10.0]
[1674196234402,0.96,21.07,21.062,10.0]
[1674196234607,0.96,21.069,21.062,10.0]
[1674196234818,0.96,21.068,21.062,10.0]
[1674196235124,15.39,21.09,21.063,35.61]
[1674196235341,35.58,21.079,21.063,35.61]
[1674196235554,20.0,21.078,21.063,35.61]
[1674196235770,20.0,21.079,21.063,35.61]
[1674196236089,20.0,21.079,21.064,10.0]
[1674196236485,20.0,21.079,21.065,35.61]
[1674196236697,20.0,21.082,21.066,10.0]
[1674196236924,35.58,21.081,21.066,10.0]
[1674196237136,20.0,21.08,21.066,10.0]
[1674196237653,18.92,21.079,21.066,10.0]
[1674196237973,20.0,21.078,21.066,10.0]
[1674196238301,18.92,21.077,21.066,10.0]
[1674196240299,18.92,21.077,21.065,35.61]
[1674196240509,18.92,21.077,21.062,45.61]
[1674196240693,54.51,21.077,21.062,45.61]
[1674196240904,18.92,21.077,21.062,45.61]
[1674196243966,18.92,21.077,21.063,20.0]
[1674196243967,17.96,21.077,21.063,20.0]
[1674196244175,17.96,21.077,21.064,35.61]
[1674196244388,17.96,21.077,21.065,10.0]
[1674196244706,17.0,21.076,21.065,10.0]
[1674196245027,0.96,21.075,21.065,10.0]
[1674196245226,20.96,21.077,21.065,10.0]
[1674196245438,35.58,21.084,21.066,35.61]
[1674196245641,35.58,21.084,21.067,20.0]
[1674196245855,23.75576951,21.084,21.067,20.0]
[1674196246055,23.75576951,21.084,21.068,45.6]
[1674196246791,23.75576951,21.084,21.069,10.0]
[1674196247209,0.96,21.083,21.069,10.0]
[1674196247529,0.96,21.082,21.069,127.9551]
[1674196247740,0.96,21.081,21.069,127.9551]
[1674196248062,0.96,21.08,21.069,127.9551]
[1674196248262,0.96,21.079,21.069,127.9551]
[1674196254708,23.75576951,21.084,21.069,127.9551]
[1674196255118,23.75576951,21.084,21.071,10.0]
[1674196255961,35.57,21.087,21.071,10.0]
[1674196256178,35.57,21.09,21.071,10.0]
[1674196256378,20.0,21.089,21.071,10.0]
[1674196256689,35.57,21.088,21.071,10.0]
[1674196256902,20.0,21.087,21.071,10.0]
[1674196257739,18.92,21.086,21.071,10.0]
[1674196257949,1.92,21.086,21.071,10.0]
[1674196258150,1.92,21.086,21.072,35.6]
[1674196258362,18.92,21.086,21.073,10.0]
[1674196259749,20.0,21.087,21.073,10.0]
[1674196259960,59.32576951,21.09,21.073,10.0]
[1674196259961,20.0,21.089,21.073,10.0]
[1674196260159,35.57,21.088,21.073,10.0]
[1674196260365,20.0,21.087,21.073,10.0]
[1674196261215,20.0,21.087,21.074,0.96]
[1674196261556,20.0,21.089,21.074,0.96]
[1674196261749,20.0,21.09,21.074,0.96]
[1674196262489,35.57,21.089,21.074,0.96]
[1674196262671,20.0,21.088,21.074,0.96]
[1674196262881,20.0,21.088,21.073,10.0]
[1674196263092,17.96,21.087,21.073,10.0]
[1674196264044,35.57,21.086,21.073,10.0]
[1674196264256,17.0,21.085,21.073,10.0]
[1674196264465,17.96,21.087,21.073,10.0]
[1674196264691,17.0,21.087,21.074,20.0]
[1674196264900,17.0,21.087,21.075,35.59]
[1674196265103,17.0,21.087,21.08,15.34]
[1674196265324,17.0,21.087,21.081,35.58]
[1674196265761,17.0,21.087,21.082,10.0]
[1674196269528,35.55,21.097,21.082,10.0]
[1674196269865,59.30576951,21.098,21.082,10.0]
[1674196270073,20.0,21.097,21.082,45.58]
[1674196270263,20.0,21.097,21.082,10.0]
[1674196271123,1.92,21.096,21.082,10.0]
[1674196272368,18.92,21.096,21.082,10.0]
[1674196273108,17.96,21.096,21.082,10.0]
[1674196273330,17.96,21.096,21.083,20.0]
[1674196273523,17.0,21.095,21.085,10.0]
[1674196273734,0.96,21.096,21.086,20.0]
[1674196273943,0.96,21.097,21.087,10.0]
[1674196274153,0.96,21.099,21.088,20.0]
[1674196274678,23.75576951,21.099,21.089,10.0]
[1674196274897,3.0,21.1,21.089,10.0]
[1674196276063,3.0,21.1,21.088,20.0]
[1674196276064,0.96,21.099,21.088,20.0]
[1674196276266,0.96,21.098,21.087,113.7932]
[1674196276465,36.51,21.097,21.086,10.0]
[1674196276677,0.96,21.096,21.086,10.0]
[1674196276897,17.96,21.096,21.086,10.0]
[1674196277106,17.0,21.095,21.086,10.0]
[1674196277326,0.96,21.096,21.086,10.0]
[1674196277540,1.92,21.097,21.086,10.0]
[1674196278674,1.92,21.097,21.087,20.0]
[1674196279200,1.92,21.097,21.088,10.0]
[1674196279408,1.92,21.097,21.086,10.0]
[1674196279843,18.92,21.097,21.086,10.0]
[1674196281740,55.55,21.098,21.086,10.0]
[1674196281956,20.0,21.098,21.086,10.0]
[1674196283188,0.96,21.097,21.086,10.0]
[1674196283402,0.96,21.098,21.086,10.0]
[1674196283631,0.96,21.098,21.087,20.0]
[1674196283827,0.96,21.099,21.087,20.0]
[1674196284039,36.51,21.099,21.088,10.0]
[1674196284243,0.96,21.099,21.088,10.0]
[1674196284894,0.96,21.098,21.088,10.0]
[1674196286551,17.0,21.099,21.088,10.0]
[1674196286761,0.96,21.098,21.088,10.0]
[1674196286993,0.96,21.099,21.088,10.0]
[1674196287609,3.0,21.1,21.09,15.27]
[1674196287814,3.0,21.1,21.091,35.56]
[1674196288030,3.0,21.1,21.092,10.0]
[1674196288276,10.0,21.113,21.094,10.0]
[1674196288461,55.53,21.112,21.094,10.0]
[1674196288891,10.0,21.111,21.092,45.56]
[1674196289088,35.53,21.11,21.093,20.0]
[1674196289299,35.52,21.114,21.1,15.27]
[1674196289513,35.52,21.119,21.101,10.0]
[1674196289724,23.75576951,21.121,21.101,10.0]
[1674196290040,15.39,21.11,21.101,10.0]
[1674196290239,35.53,21.109,21.101,10.0]
[1674196290447,35.53,21.109,21.093,35.56]
[1674196290665,20.96,21.108,21.093,35.56]
[1674196290871,20.96,21.108,21.092,35.56]
[1674196291088,0.96,21.108,21.092,35.56]
[1674196291284,20.0,21.116,21.092,35.56]
[1674196291285,35.52,21.114,21.092,47.88902593]
[1674196291495,56.01612865,21.12,21.093,11.92]
[1674196291496,45.52,21.119,21.093,11.92]
[1674196291715,20.0,21.118,21.094,35.56]
[1674196291911,35.52,21.117,21.095,10.0]
[1674196292121,35.52,21.117,21.1,15.27]
[1674196292328,20.0,21.118,21.102,10.0]
[1674196292563,55.5,21.127,21.103,35.54]
[1674196292764,10.0,21.126,21.104,10.0]
[1674196292964,35.51,21.125,21.104,10.0]
[1674196293170,20.0,21.124,21.104,10.0]
[1674196293385,45.51,21.123,21.104,10.0]
[1674196293597,20.0,21.122,21.103,35.54]
[1674196293827,15.39,21.12,21.103,35.54]
[1674196294010,36.48,21.119,21.1,35.55]
[1674196294221,36.48,21.119,21.095,10.0]
[1674196294222,10.0,21.117,21.093,10.0]
[1674196294433,74.44,21.116,21.093,10.0]
[1674196294864,98.19576951,21.116,21.093,10.0]
[1674196295073,74.44,21.116,21.093,10.0]
[1674196295626,74.44,21.116,21.094,35.56]
[1674196295813,74.44,21.116,21.095,10.0]
[1674196296431,73.48,21.116,21.095,10.0]
[1674196298123,0.96,21.115,21.095,10.0]
[1674196298327,36.48,21.114,21.095,10.0]
[1674196298542,37.96,21.113,21.095,10.0]
[1674196298749,36.49,21.112,21.095,10.0]
[1674196298958,37.96,21.111,21.095,10.0]
[1674196299285,36.49,21.11,21.093,10.0]
[1674196299478,37.96,21.109,21.093,10.0]
[1674196299690,36.49,21.108,21.093,10.0]
[1674196299905,37.96,21.107,21.093,10.0]
[1674196300113,0.96,21.106,21.093,10.0]
[1674196300333,0.96,21.105,21.093,10.0]
[1674196300651,0.96,21.104,21.093,10.0]
[1674196300842,0.96,21.103,21.093,10.0]
[1674196301056,0.96,21.102,21.093,10.0]
[1674196301282,0.96,21.101,21.093,10.0]
[1674196302967,0.96,21.102,21.093,10.0]
[1674196303150,0.96,21.101,21.093,10.0]
[1674196303805,0.96,21.101,21.092,127.0919]
[1674196304129,1.92,21.1,21.093,10.0]
[1674196304840,35.54,21.106,21.093,10.0]
[1674196305049,17.96,21.105,21.093,10.0]
[1674196305472,0.96,21.105,21.093,10.0]
[1674196305679,0.96,21.105,21.095,10.0]
[1674196305901,0.96,21.105,21.096,20.0]
[1674196306107,1.92,21.105,21.097,10.0]
[1674196306320,1.92,21.105,21.099,10.0]
[1674196306534,35.52,21.115,21.099,10.0]
[1674196306750,35.52,21.117,21.101,10.0]
[1674196307078,59.26576951,21.121,21.101,45.55]
[1674196308304,20.0,21.12,21.101,45.55]
[1674196308744,20.0,21.124,21.101,45.55]
[1674196309039,59.26576951,21.123,21.101,45.55]
[1674196309255,20.0,21.122,21.101,45.55]
[1674196309460,35.51,21.121,21.101,45.55]
[1674196309678,20.0,21.12,21.102,0.96]
[1674196309892,20.0,21.12,21.103,36.5]
[1674196310099,20.0,21.12,21.105,10.0]
[1674196310303,20.0,21.127,21.106,35.54]
[1674196310521,35.5,21.126,21.106,35.54]
[1674196310730,20.0,21.125,21.106,35.54]
[1674196310939,35.51,21.124,21.107,10.0]
[1674196311367,20.0,21.123,21.107,10.0]
[1674196311585,36.47,21.122,21.107,10.0]
[1674196311786,20.0,21.121,21.107,10.0]
[1674196312001,36.47,21.12,21.107,10.0]
[1674196312210,20.0,21.119,21.107,10.0]
[1674196312405,18.92,21.118,21.107,10.0]
[1674196312612,20.0,21.117,21.107,10.0]
[1674196313383,20.0,21.125,21.107,10.0]
[1674196313580,36.47,21.124,21.11,15.39]
[1674196313786,0.96,21.124,21.112,10.0]
[1674196315137,55.5,21.13,21.112,10.0]
[1674196315567,55.5,21.13,21.113,35.53]
[1674196315784,55.5,21.13,21.112,10.0]
[1674196315785,55.5,21.13,21.114,10.0]
[1674196316417,55.5,21.13,21.112,45.53]
[1674196316608,55.5,21.13,21.112,35.53]
[1674196316814,94.64576951,21.13,21.11,60.92]
[1674196317041,10.0,21.128,21.11,10.0]
[1674196317256,74.42,21.127,21.11,10.0]
[1674196317567,10.0,21.126,21.11,10.0]
[1674196317778,54.43,21.125,21.11,10.0]
[1674196317976,35.5,21.126,21.11,10.0]
[1674196318187,17.96,21.124,21.11,10.0]
[1674196318420,0.96,21.123,21.11,10.0]
[1674196318614,0.96,21.122,21.11,10.0]
[1674196318829,0.96,21.121,21.11,10.0]
[1674196319033,0.96,21.12,21.108,112.6589]
[1674196319354,0.96,21.12,21.101,10.0]
[1674196319355,36.48,21.119,21.102,35.54]
[1674196319560,36.48,21.119,21.101,10.0]
[1674196319561,10.0,21.117,21.101,163.4025]
[1674196319769,0.96,21.116,21.101,163.4025]
[1674196319979,10.96,21.115,21.101,153.4025]
[1674196320189,0.96,21.114,21.101,117.8525]
[1674196320420,0.96,21.113,21.101,117.8525]
[1674196320621,0.96,21.112,21.101,117.8525]
[1674196320833,0.96,21.111,21.101,117.8525]
[1674196321042,0.96,21.11,21.101,117.8525]
[1674196321557,0.96,21.109,21.101,117.8525]
[1674196321762,0.96,21.108,21.101,117.8525]
[1674196321974,0.96,21.107,21.101,117.8525]
[1674196322184,0.96,21.106,21.101,117.8525]
[1674196322618,52.52,21.114,21.101,117.8525]
[1674196322829,1.92,21.113,21.102,10.0]
[1674196324834,18.92,21.113,21.102,10.0]
[1674196325566,17.0,21.112,21.102,10.0]
[1674196325756,1.92,21.111,21.102,10.0]
[1674196325967,18.92,21.113,21.102,10.0]
[1674196326181,1.92,21.113,21.102,10.0]
[1674196327042,1.92,21.113,21.101,117.8525]
[1674196327234,18.92,21.113,21.101,117.8525]
[1674196327444,1.92,21.113,21.102,10.0]
[1674196334522,35.52,21.119,21.104,10.0]
[1674196334718,20.0,21.12,21.106,10.0]
[1674196334933,20.0,21.122,21.106,10.0]
[1674196335142,20.0,21.123,21.106,10.0]
[1674196335357,20.0,21.123,21.108,10.0]